lending/lending_fUSD_20240411
["ID","MTS","AMOUNT","RATE_DAILY","PERIOD"]
[322146012,1712849441437,-1093.99,0.00032876,2]
[322146013,1712849441448,-439.32635584,0.00032876,2]
[322146014,1712849441459,-878.2,0.00032876,2]
[322146015,1712849441469,-500.0,0.00032876,2]
[322146016,1712849441480,-778.92,0.00032876,2]
[322146017,1712849441491,-511.3758137,0.00032876,2]
[322146018,1712849441501,-563.33719795,0.00032876,2]
[322146019,1712849441512,-516.17826373,0.00032876,2]
[322146020,1712849441522,-647.39,0.00032876,2]
[322146021,1712849441531,-500.0,0.00032876,2]
[322146022,1712849441541,-513.02524976,0.00032876,2]
[322146023,1712849441551,-500.0,0.00032876,2]
[322146024,1712849441561,-914.43,0.00032876,2]
[322146025,1712849441571,-500.0,0.00032876,2]
[322146026,1712849441581,-500.0,0.00032876,2]
[322146027,1712849441591,-498.48115019,0.00032876,2]
[322146028,1712849441601,-500.0,0.00032876,2]
[322146029,1712849441611,-500.0,0.00032876,2]
[322146030,1712849441621,-500.0,0.00032876,2]
[322146031,1712849441630,-500.0,0.00032876,2]
[322146032,1712849441640,-165.04466294,0.00032876,2]
[322146033,1712849441650,-500.0,0.00032876,2]
[322146034,1712849441661,-500.0,0.00032876,2]
[322146035,1712849441671,-500.0,0.00032876,2]
[322146036,1712849441681,-395.31222735,0.00032876,2]
[322146037,1712849441691,-500.0,0.00032876,2]
[322146038,1712849441701,-500.0,0.00032876,2]
[322146039,1712849441711,-500.0,0.00032876,2]
[322146040,1712849441721,-877.78,0.00032876,2]
[322146041,1712849441731,-603.49,0.00032876,2]
[322146042,1712849441741,-500.0,0.00032876,2]
[322146043,1712849441750,-984.76,0.00032876,2]
[322146044,1712849441760,-522.71173593,0.00032876,2]
[322146045,1712849441770,-500.0,0.00032876,2]
[322146046,1712849441779,-500.0,0.00032876,2]
[322146047,1712849441789,-500.0,0.00032876,2]
[322146048,1712849441798,-702.09,0.00032876,2]
[322146049,1712849441808,-500.0,0.00032876,2]
[322146050,1712849441837,-500.0,0.00032876,2]
[322146051,1712849441859,-562.63380173,0.00032876,2]
[322146052,1712849441875,-500.0,0.00032876,2]
[322146053,1712849441893,-500.0,0.00032876,2]
[322146054,1712849441913,-500.0,0.00032876,2]
[322146055,1712849441926,-500.0,0.00032876,2]
[322146056,1712849441943,-500.0,0.00032876,2]
[322146057,1712849441960,-500.0,0.00032876,2]
[322146058,1712849441978,-563.42058745,0.00032876,2]
[322146059,1712849441995,-500.0,0.00032876,2]
[322146060,1712849442012,-500.0,0.00032876,2]
[322146061,1712849442035,-500.0,0.00032876,2]
[322146062,1712849442051,-516.24,0.00032876,2]
[322146063,1712849442068,-500.0,0.00032876,2]
[322146064,1712849442087,-500.0,0.00032876,2]
[322146065,1712849442106,-500.0,0.00032876,2]
[322146066,1712849442121,-518.78820308,0.00032876,2]
[322146067,1712849442135,-500.0,0.00032876,2]
[322146068,1712849442150,-500.0,0.00032876,2]
[322146069,1712849442170,-521.26203938,0.00032876,2]
[322146070,1712849442183,-500.0,0.00032876,2]
[322146071,1712849442197,-500.0,0.00032876,2]
[322146072,1712849442214,-815.67,0.00032876,2]
[322146073,1712849442248,-500.0,0.00032876,2]
[322146074,1712849442266,-535.57327133,0.00032876,2]
[322146075,1712849442285,-500.0,0.00032876,2]
[322146076,1712849442302,-1091.12,0.00032876,2]
[322146077,1712849442318,-551.93965635,0.00032876,2]
[322146078,1712849442336,-500.0,0.00032876,2]
[322146079,1712849442351,-500.0,0.00032876,2]
[322146080,1712849442367,-500.0,0.00032876,2]
[322146081,1712849442383,-500.0,0.00032876,2]
[322146082,1712849442399,-500.0,0.00032876,2]
[322146084,1712849442415,-500.0,0.00032876,2]
[322146087,1712849442431,-517.45,0.00032876,2]
[322146089,1712849442446,-511.86171558,0.00032876,2]
[322146092,1712849442461,-500.0,0.00032876,2]
[322146094,1712849442476,-500.0,0.00032876,2]
[322146097,1712849442492,-557.52920559,0.00032876,2]
[322146098,1712849442508,-500.0,0.00032876,2]
[322146100,1712849442523,-500.0,0.00032876,2]
[322146102,1712849442537,-500.0,0.00032876,2]
[322146103,1712849442552,-500.0,0.00032876,2]
[322146104,1712849442567,-590.18,0.00032876,2]
[322146105,1712849442581,-500.0,0.00032876,2]
[322146106,1712849442595,-500.0,0.00032876,2]
[322146107,1712849442609,-500.0,0.00032876,2]
[322146109,1712849442623,-500.0,0.00032876,2]
[322146110,1712849442637,-500.0,0.00032876,2]
[322146111,1712849442652,-500.0,0.00032876,2]
[322146112,1712849442666,-500.0,0.00032876,2]
[322146113,1712849442680,-284.75163335,0.00032876,2]
[322146114,1712849442694,-500.0,0.00032876,2]
[322146115,1712849442707,-500.0,0.00032876,2]
[322146117,1712849442721,-500.0,0.00032876,2]
[322146118,1712849442735,-500.0,0.00032876,2]
[322146119,1712849442750,-754.97,0.00032876,2]
[322146120,1712849442764,-515.12629051,0.00032876,2]
[322146121,1712849442778,-500.0,0.00032876,2]
[322146122,1712849442792,-544.88,0.00032876,2]
[322146123,1712849442806,-500.0,0.00032876,2]
[322146124,1712849442820,-500.0,0.00032876,2]
[322146125,1712849442834,-645.03,0.00032876,2]
[322146126,1712849442848,-500.0,0.00032876,2]
[322146127,1712849442862,-500.0,0.00032876,2]
[322146128,1712849442875,-503.63,0.00032876,2]
[322146129,1712849442888,-500.0,0.00032876,2]
[322146130,1712849442902,-537.93757422,0.00032876,2]
[322146131,1712849442916,-585.63630492,0.00032876,2]
[322146132,1712849442929,-733.11,0.00032876,2]
[322146133,1712849442943,-500.0,0.00032876,2]
[322146134,1712849442955,-500.0,0.00032876,2]
[322146135,1712849442969,-533.47,0.00032876,2]
[322146136,1712849442983,-500.0,0.00032876,2]
[322146137,1712849442997,-500.0,0.00032876,2]
[322146138,1712849443009,-500.0,0.00032876,2]
[322146139,1712849443023,-679.29,0.00032876,2]
[322146140,1712849443037,-500.0,0.00032876,2]
[322146141,1712849443052,-500.0,0.00032876,2]
[322146142,1712849443065,-701.41,0.00032876,2]
[322146143,1712849443079,-500.0,0.00032876,2]
[322146144,1712849443095,-500.0,0.00032876,2]
[322146145,1712849443109,-500.0,0.00032876,2]
[322146146,1712849443123,-1197.01,0.00032876,2]
[322146147,1712849443137,-500.0,0.00032876,2]
[322146148,1712849443150,-500.0,0.00032876,2]
[322146149,1712849443164,-500.0,0.00032876,2]
[322146150,1712849443178,-901.15,0.00032876,2]
[322146151,1712849443191,-500.0,0.00032876,2]
[322146152,1712849443205,-500.0,0.00032876,2]
[322146153,1712849443218,-500.0,0.00032876,2]
[322146154,1712849443232,-500.0,0.00032876,2]
[322146155,1712849443245,-500.0,0.00032876,2]
[322146156,1712849443258,-500.0,0.00032876,2]
[322146157,1712849443272,-1050.26,0.00032876,2]
[322146158,1712849443286,-500.0,0.00032876,2]
[322146159,1712849443299,-500.0,0.00032876,2]
[322146160,1712849443313,-500.0,0.00032876,2]
[322146161,1712849443326,-955.16,0.00032876,2]
[322146162,1712849443340,-500.0,0.00032876,2]
[322146163,1712849443354,-500.0,0.00032876,2]
[322146164,1712849443367,-500.0,0.00032876,2]
[322146165,1712849443381,-500.0,0.00032876,2]
[322146166,1712849443394,-500.0,0.00032876,2]
[322146167,1712849443408,-500.0,0.00032876,2]
[322146168,1712849443424,-1114.96,0.00032876,2]
[322146169,1712849443437,-637.37,0.00032876,2]
[322146170,1712849443452,-500.0,0.00032876,2]
[322146171,1712849443466,-1047.99,0.00032876,2]
[322146172,1712849443480,-500.0,0.00032876,2]
[322146173,1712849443497,-500.0,0.00032876,2]
[322146174,1712849443511,-500.0,0.00032876,2]
[322146175,1712849443525,-500.0,0.00032876,2]
[322146176,1712849443539,-634.42,0.00032876,2]
[322146177,1712849443552,-500.0,0.00032876,2]
[322146178,1712849443566,-597.71,0.00032876,2]
[322146179,1712849443580,-500.0,0.00032876,2]
[322146180,1712849443593,-500.0,0.00032876,2]
[322146181,1712849443606,-537.14,0.00032876,2]
[322146182,1712849443620,-500.0,0.00032876,2]
[322146183,1712849443633,-500.0,0.00032876,2]
[322146184,1712849443646,-500.0,0.00032876,2]
[322146185,1712849443660,-2158.47,0.00032876,2]
[322146186,1712849443674,-334.46770677,0.00032876,2]
[322146187,1712849443684,-501.48300233,0.00032876,2]
[322146188,1712849443694,-500.0,0.00032876,2]
[322146189,1712849443704,-500.0,0.00032876,2]
[322146190,1712849443714,-500.0,0.00032876,2]
[322146191,1712849443724,-500.0,0.00032876,2]
[322146192,1712849443733,-500.0,0.00032876,2]
[322146193,1712849443743,-500.0,0.00032876,2]
[322146194,1712849443753,-500.0,0.00032876,2]
[322146195,1712849443763,-500.0,0.00032876,2]
[322146196,1712849443772,-447.50472749,0.00032876,2]
[322146197,1712849443782,-541.25,0.00032876,2]
[322146198,1712849443791,-500.0,0.00032876,2]
[322146199,1712849443800,-500.0,0.00032876,2]
[322146200,1712849443810,-500.0,0.00032876,2]
[322146201,1712849443819,-500.0,0.00032876,2]
[322146202,1712849443829,-500.0,0.00032876,2]
[322146203,1712849443838,-500.0,0.00032876,2]
[322146204,1712849443848,-500.0,0.00032876,2]
[322146205,1712849444128,-500.0,0.00032876,2]
[322146206,1712849444283,-514.80978094,0.00032876,2]
[322146207,1712849444313,-659.11,0.00032876,2]
[322146208,1712849444322,-500.0,0.00032876,2]
[322146209,1712849444332,-500.0,0.00032876,2]
[322146210,1712849444341,-845.91,0.00032876,2]
[322146211,1712849444351,-500.0,0.00032876,2]
[322146212,1712849444360,-500.0,0.00032876,2]
[322146213,1712849444369,-553.14,0.00032876,2]
[322146214,1712849444379,-500.0,0.00032876,2]
[322146215,1712849444389,-500.0,0.00032876,2]
[322146216,1712849444398,-500.0,0.00032876,2]
[322146217,1712849444407,-500.0,0.00032876,2]
[322146218,1712849444421,-500.0,0.00032876,2]
[322146219,1712849444430,-500.0,0.00032876,2]
[322146220,1712849444439,-515.82,0.00032876,2]
[322146221,1712849444448,-500.0,0.00032876,2]
[322146222,1712849444458,-500.0,0.00032876,2]
[322146223,1712849444468,-500.0,0.00032876,2]
[322146224,1712849444477,-781.53,0.00032876,2]
[322146225,1712849444488,-500.0,0.00032876,2]
[322146226,1712849444498,-500.0,0.00032876,2]
[322146227,1712849444507,-500.0,0.00032876,2]
[322146228,1712849444517,-500.0,0.00032876,2]
[322146229,1712849444526,-563.5,0.00032876,2]
[322146230,1712849444536,-500.0,0.00032876,2]
[322146231,1712849444545,-500.0,0.00032876,2]
[322146232,1712849444555,-500.0,0.00032876,2]
[322146233,1712849444564,-500.0,0.00032876,2]
[322146234,1712849444574,-500.0,0.00032876,2]
[322146235,1712849444582,-500.0,0.00032876,2]
[322146236,1712849444591,-500.0,0.00032876,2]
[322146237,1712849444601,-500.0,0.00032876,2]
[322146238,1712849444610,-500.0,0.00032876,2]
[322146239,1712849444619,-500.0,0.00032876,2]
[322146240,1712849444628,-500.0,0.00032876,2]
[322146241,1712849444638,-500.0,0.00032876,2]
[322146242,1712849444650,-500.0,0.00032876,2]
[322146243,1712849444659,-1844.98,0.00032876,2]
[322146244,1712849444669,-507.89,0.00032876,2]
[322146245,1712849444678,-569.52,0.00032876,2]
[322146246,1712849444687,-899.82,0.00032876,2]
[322146247,1712849444702,-500.0,0.00032876,2]
[322146248,1712849444711,-195.46355796,0.00032876,2]
[322146249,1712849444721,-500.0,0.00032876,2]
[322146250,1712849444730,-684.12,0.00032876,2]
[322146251,1712849444739,-500.0,0.00032876,2]
[322146252,1712849444748,-500.0,0.00032876,2]
[322146253,1712849444757,-528.81,0.00032876,2]
[322146254,1712849444767,-537.02,0.00032876,2]
[322146255,1712849444777,-500.0,0.00032876,2]
[322146256,1712849444786,-500.0,0.00032876,2]
[322146257,1712849444795,-1760.55,0.00032876,2]
[322146258,1712849444805,-500.0,0.00032876,2]
[322146259,1712849444814,-841.38,0.00032876,2]
[322146260,1712849444824,-1153.16,0.00032876,2]
[322146261,1712849444833,-500.0,0.00032876,2]
[322146262,1712849444842,-500.0,0.00032876,2]
[322146263,1712849444851,-500.0,0.00032876,2]
[322146264,1712849444861,-617.72,0.00032876,2]
[322146265,1712849444870,-227.70407459,0.00032876,2]
[322146266,1712849444879,-542.67,0.00032876,2]
[322146267,1712849444889,-653.48,0.00032876,2]
[322146268,1712849444898,-500.0,0.00032876,2]
[322146269,1712849444907,-616.25,0.00032876,2]
[322146270,1712849444916,-500.0,0.00032876,2]
[322146271,1712849444925,-844.77,0.00032876,2]
[322146272,1712849444935,-500.0,0.00032876,2]
[322146273,1712849444944,-500.0,0.00032876,2]
[322146274,1712849444954,-2034.27,0.00032876,2]
[322146275,1712849444962,-500.0,0.00032876,2]
[322146276,1712849444971,-500.0,0.00032876,2]
[322146277,1712849444980,-500.0,0.00032876,2]
[322146278,1712849444989,-500.0,0.00032876,2]
[322146279,1712849444999,-500.0,0.00032876,2]
[322146280,1712849445009,-679.72,0.00032876,2]
[322146281,1712849445018,-500.0,0.00032876,2]
[322146282,1712849445027,-500.0,0.00032876,2]
[322146283,1712849445036,-1398.53,0.00032876,2]
[322146284,1712849445045,-1511.03,0.00032876,2]
[322146285,1712849445055,-500.0,0.00032876,2]
[322146286,1712849445066,-500.0,0.00032876,2]
[322146287,1712849445076,-500.0,0.00032876,2]
[322146288,1712849445087,-559.28672072,0.00032876,2]
[322146289,1712849445098,-765.43,0.00032876,2]
[322146290,1712849445107,-500.0,0.00032876,2]
[322146291,1712849445118,-500.0,0.00032876,2]
[322146292,1712849445128,-500.0,0.00032876,2]
[322146293,1712849445137,-500.0,0.00032876,2]
[322146294,1712849445147,-500.0,0.00032876,2]
[322146295,1712849445158,-500.0,0.00032876,2]
[322146296,1712849445168,-872.32,0.00032876,2]
[322146297,1712849445178,-500.0,0.00032876,2]
[322146298,1712849445188,-2415.99,0.00032876,2]
[322146299,1712849445197,-500.0,0.00032876,2]
[322146300,1712849445207,-500.0,0.00032876,2]
[322146301,1712849445217,-516.66,0.00032876,2]
[322146302,1712849445226,-420.07553664,0.00032876,2]
[322146303,1712849445237,-414.2379602,0.00032876,2]
[322146304,1712849445250,-500.0,0.00032876,2]
[322146305,1712849445260,-500.0,0.00032876,2]
[322146306,1712849445269,-500.0,0.00032876,2]
[322146307,1712849445279,-774.88,0.00032876,2]
[322146308,1712849445288,-500.0,0.00032876,2]
[322146309,1712849445297,-569.12176984,0.00032876,2]
[322146310,1712849445306,-500.0,0.00032876,2]
[322146311,1712849445316,-533.04,0.00032876,2]
[322146312,1712849445326,-500.0,0.00032876,2]
[322146313,1712849445335,-500.0,0.00032876,2]
[322146314,1712849445344,-661.97,0.00032876,2]
[322146315,1712849445353,-500.0,0.00032876,2]
[322146316,1712849445363,-500.0,0.00032876,2]
[322146317,1712849445373,-590.70917819,0.00032876,2]
[322146318,1712849445382,-500.0,0.00032876,2]
[322146319,1712849445391,-675.92,0.00032876,2]
[322146320,1712849445400,-500.0,0.00032876,2]
[322146321,1712849445409,-500.0,0.00032876,2]
[322146322,1712849445424,-1196.92,0.00032876,2]
[322146323,1712849445433,-500.0,0.00032876,2]
[322146324,1712849445443,-500.0,0.00032876,2]
[322146325,1712849445452,-500.0,0.00032876,2]
[322146327,1712849445462,-500.0,0.00032876,2]
[322146329,1712849445475,-500.0,0.00032876,2]
[322146330,1712849445485,-500.0,0.00032876,2]
[322146331,1712849445496,-500.0,0.00032876,2]
[322146332,1712849445505,-500.0,0.00032876,2]
[322146333,1712849445514,-865.96,0.00032876,2]
[322146334,1712849445525,-853.78,0.00032876,2]
[322146335,1712849445534,-500.0,0.00032876,2]
[322146336,1712849445543,-500.0,0.00032876,2]
[322146337,1712849445553,-500.0,0.00032876,2]
[322146338,1712849445562,-1200.07,0.00032876,2]
[322146339,1712849445571,-500.0,0.00032876,2]
[322146340,1712849445580,-500.0,0.00032876,2]
[322146341,1712849445590,-150.0,0.00032876,2]
[322146342,1712849445602,-500.0,0.00032876,2]
[322146343,1712849445612,-657.62,0.00032876,2]
[322146344,1712849445621,-500.0,0.00032876,2]
[322146345,1712849445631,-500.0,0.00032876,2]
[322146346,1712849445641,-500.0,0.00032876,2]
[322146347,1712849445650,-500.0,0.00032876,2]
[322146348,1712849445659,-500.0,0.00032876,2]
[322146349,1712849445668,-500.0,0.00032876,2]
[322146350,1712849445678,-500.0,0.00032876,2]
[322146351,1712849445688,-500.0,0.00032876,2]
[322146352,1712849445698,-500.0,0.00032876,2]
[322146353,1712849445707,-300.0,0.00032876,2]
[322146354,1712849445716,-500.0,0.00032876,2]
[322146355,1712849445725,-571.66086171,0.00032876,2]
[322146356,1712849445735,-2232.38,0.00032876,2]
[322146357,1712849445744,-536.84,0.00032876,2]
[322146358,1712849445753,-500.0,0.00032876,2]
[322146359,1712849445762,-500.0,0.00032876,2]
[322146360,1712849445771,-594.01,0.00032876,2]
[322146361,1712849445780,-500.0,0.00032876,2]
[322146362,1712849445790,-500.0,0.00032876,2]
[322146363,1712849445799,-1227.31,0.00032876,2]
[322146364,1712849445808,-362.24736248,0.00032876,2]
[322146365,1712849445817,-755.2,0.00032876,2]
[322146366,1712849445826,-500.0,0.00032876,2]
[322146367,1712849445835,-779.68,0.00032876,2]
[322146368,1712849445846,-500.0,0.00032876,2]
[322146369,1712849445856,-597.93710311,0.00032876,2]
[322146370,1712849445866,-823.94,0.00032876,2]
[322146371,1712849445875,-675.27,0.00032876,2]
[322146372,1712849445886,-500.0,0.00032876,2]
[322146373,1712849445897,-500.0,0.00032876,2]
[322146374,1712849445908,-1062.48,0.00032876,2]
[322146375,1712849445918,-1136.82,0.00032876,2]
[322146376,1712849445928,-500.0,0.00032876,2]
[322146377,1712849445937,-1337.21,0.00032876,2]
[322146378,1712849445946,-500.0,0.00032876,2]
[322146379,1712849445955,-500.0,0.00032876,2]
[322146380,1712849445965,-500.0,0.00032876,2]
[322146381,1712849445974,-2447.06,0.00032876,2]
[322146382,1712849445983,-500.0,0.00032876,2]
[322146383,1712849445992,-500.0,0.00032876,2]
[322146384,1712849446003,-1055.73,0.00032876,2]
[322146385,1712849446012,-500.0,0.00032876,2]
[322146386,1712849446022,-500.0,0.00032876,2]
[322146387,1712849446031,-500.0,0.00032876,2]
[322146388,1712849446040,-500.0,0.00032876,2]
[322146389,1712849446050,-500.0,0.00032876,2]
[322146390,1712849446060,-621.29655208,0.00032876,2]
[322146391,1712849446069,-500.0,0.00032876,2]
[322146392,1712849446079,-500.0,0.00032876,2]
[322146393,1712849446088,-2071.9,0.00032876,2]
[322146394,1712849446099,-500.0,0.00032876,2]
[322146395,1712849446108,-500.0,0.00032876,2]
[322146396,1712849446118,-500.0,0.00032876,2]
[322146397,1712849446127,-500.0,0.00032876,2]
[322146398,1712849446138,-173.82625125,0.00032876,2]
[322146399,1712849446148,-1958.33,0.00032876,2]
[322146401,1712849446157,-528.76792355,0.00032876,2]
[322146402,1712849446167,-500.0,0.00032876,2]
[322146403,1712849446176,-2878.59,0.00032876,2]
[322146404,1712849446186,-500.0,0.00032876,2]
[322146405,1712849446195,-327.51200049,0.00032876,2]
[322146406,1712849446204,-158.02650976,0.00032876,2]
[322146409,1712849446213,-500.0,0.00032876,2]
[322146412,1712849446222,-621.33,0.00032876,2]
[322146414,1712849446231,-500.0,0.00032876,2]
[322146416,1712849446240,-526.1,0.00032876,2]
[322146417,1712849446251,-500.0,0.00032876,2]
[322146418,1712849446260,-2102.98,0.00032876,2]
[322146419,1712849446269,-572.1,0.00032876,2]
[322146420,1712849446279,-647.29386537,0.00032876,2]
[322146421,1712849446288,-500.0,0.00032876,2]
[322146422,1712849446297,-1764.5,0.00032876,2]
[322146423,1712849446307,-500.0,0.00032876,2]
[322146424,1712849446317,-970.13,0.00032876,2]
[322146425,1712849446326,-500.0,0.00032876,2]
[322146426,1712849446335,-500.0,0.00032876,2]
[322146427,1712849446344,-500.0,0.00032876,2]
[322146428,1712849446354,-645.82,0.00032876,2]
[322146430,1712849446364,-1193.88,0.00032876,2]
[322146432,1712849446373,-500.0,0.00032876,2]
[322146434,1712849446382,-2497.07,0.00032876,2]
[322146436,1712849446391,-638.56,0.00032876,2]
[322146438,1712849446400,-641.91,0.00032876,2]
[322146440,1712849446410,-592.0,0.00032876,2]
[322146441,1712849446423,-500.0,0.00032876,2]
[322146442,1712849446431,-500.0,0.00032876,2]
[322146443,1712849446440,-500.0,0.00032876,2]
[322146444,1712849446450,-500.0,0.00032876,2]
[322146445,1712849446459,-500.0,0.00032876,2]
[322146446,1712849446469,-750.44,0.00032876,2]
[322146447,1712849446478,-1309.66,0.00032876,2]
[322146448,1712849446487,-500.0,0.00032876,2]
[322146449,1712849446498,-500.0,0.00032876,2]
[322146450,1712849446508,-500.0,0.00032876,2]
[322146451,1712849446517,-500.0,0.00032876,2]
[322146452,1712849446527,-500.0,0.00032876,2]
[322146453,1712849446536,-500.0,0.00032876,2]
[322146454,1712849446545,-1823.85,0.00032876,2]
[322146455,1712849446554,-824.39,0.00032876,2]
[322146456,1712849446563,-641.89,0.00032876,2]
[322146457,1712849446572,-500.0,0.00032876,2]
[322146458,1712849446581,-500.0,0.00032876,2]
[322146459,1712849446591,-500.0,0.00032876,2]
[322146460,1712849446600,-518.98667058,0.00032876,2]
[322146461,1712849446609,-500.0,0.00032876,2]
[322146462,1712849446618,-500.0,0.00032876,2]
[322146463,1712849446627,-1193.09,0.00032876,2]
[322146464,1712849446636,-500.0,0.00032876,2]
[322146465,1712849446646,-668.91,0.00032876,2]
[322146466,1712849446655,-500.0,0.00032876,2]
[322146467,1712849446664,-210.18603978,0.00032876,2]
[322146468,1712849446673,-818.48,0.00032876,2]
[322146469,1712849446682,-500.0,0.00032876,2]
[322146470,1712849446691,-735.93,0.00032876,2]
[322146471,1712849446700,-286.33800006,0.00032876,2]
[322146472,1712849446710,-513.45,0.00032876,2]
[322146473,1712849446719,-500.0,0.00032876,2]
[322146474,1712849446729,-730.8,0.00032876,2]
[322146475,1712849446738,-500.0,0.00032876,2]
[322146476,1712849446747,-967.51,0.00032876,2]
[322146477,1712849446756,-2415.45,0.00032876,2]
[322146478,1712849446766,-1101.87,0.00032876,2]
[322146479,1712849446775,-500.0,0.00032876,2]
[322146480,1712849446784,-500.0,0.00032876,2]
[322146481,1712849446793,-500.0,0.00032876,2]
[322146482,1712849446803,-620.86,0.00032876,2]
[322146483,1712849446812,-500.0,0.00032876,2]
[322146484,1712849446822,-500.0,0.00032876,2]
[322146485,1712849446831,-500.0,0.00032876,2]
[322146486,1712849446840,-2025.79,0.00032876,2]
[322146487,1712849446850,-500.0,0.00032876,2]
[322146488,1712849446859,-500.0,0.00032876,2]
[322146489,1712849446868,-599.35,0.00032876,2]
[322146490,1712849446877,-658.21,0.00032876,2]
[322146491,1712849446887,-500.0,0.00032876,2]
[322146492,1712849446896,-602.82,0.00032876,2]
[322146493,1712849446905,-500.0,0.00032876,2]
[322146494,1712849446914,-1194.53,0.00032876,2]
[322146495,1712849446923,-500.0,0.00032876,2]
[322146496,1712849446932,-500.0,0.00032876,2]
[322146497,1712849446942,-500.0,0.00032876,2]
[322146498,1712849446951,-500.0,0.00032876,2]
[322146499,1712849446961,-500.0,0.00032876,2]
[322146500,1712849446972,-500.0,0.00032876,2]
[322146501,1712849446982,-828.79,0.00032876,2]
[322146502,1712849446992,-522.91868113,0.00032876,2]
[322146503,1712849447005,-500.0,0.00032876,2]
[322146504,1712849447015,-1202.27,0.00032876,2]
[322146505,1712849447024,-620.9,0.00032876,2]
[322146506,1712849447034,-500.0,0.00032876,2]
[322146507,1712849447044,-500.0,0.00032876,2]
[322146508,1712849447054,-538.45342374,0.00032876,2]
[322146509,1712849447063,-2006.55,0.00032876,2]
[322146510,1712849447073,-1517.03,0.00032876,2]
[322146511,1712849447083,-500.0,0.00032876,2]
[322146512,1712849447094,-500.0,0.00032876,2]
[322146513,1712849447104,-500.0,0.00032876,2]
[322146514,1712849447114,-500.0,0.00032876,2]
[322146515,1712849447124,-500.0,0.00032876,2]
[322146516,1712849447134,-511.42,0.00032876,2]
[322146517,1712849447143,-500.0,0.00032876,2]
[322146518,1712849447153,-500.0,0.00032876,2]
[322146519,1712849447163,-500.0,0.00032876,2]
[322146520,1712849447174,-1175.45,0.00032876,2]
[322146521,1712849447183,-500.0,0.00032876,2]
[322146522,1712849447195,-1595.97,0.00032876,2]
[322146523,1712849447204,-500.0,0.00032876,2]
[322146524,1712849447213,-930.36,0.00032876,2]
[322146525,1712849447222,-500.0,0.00032876,2]
[322146526,1712849447232,-1452.71,0.00032876,2]
[322146527,1712849447241,-500.0,0.00032876,2]
[322146528,1712849447256,-1094.78,0.00032876,2]
[322146529,1712849447266,-500.0,0.00032876,2]
[322146530,1712849447275,-500.0,0.00032876,2]
[322146531,1712849447285,-500.0,0.00032876,2]
[322146532,1712849447295,-784.09,0.00032876,2]
[322146533,1712849447304,-500.0,0.00032876,2]
[322146534,1712849447314,-500.0,0.00032876,2]
[322146535,1712849447324,-500.0,0.00032876,2]
[322146536,1712849447334,-577.55,0.00032876,2]
[322146537,1712849447343,-500.0,0.00032876,2]
[322146538,1712849447352,-500.0,0.00032876,2]
[322146539,1712849447362,-2992.5,0.00032876,2]